[Event "Titled Tuesday Blitz June 07 Late 2022"]
[White "Guseinov, Gadir"]
[Black "Bibasa, Bob"]
[WhiteFideId "13401378"]
[BlackFideId "10000240"]
[WhiteElo "2581"]
[BlackElo "1983"]
[Result "1-0"]
[Round "01"]
[TimeControl "180+1"]
[Date "2022.06.07"]
[WhiteClock "0:02:23"]
[BlackClock "0:00:58"]

1. e4 {[%clk 0:03:00]}  c5 {[%clk 0:02:59]} 2. Nc3 {[%clk 0:03:00]}  Nc6 {[%clk 0:02:55]} 3. Bb5 {[%clk 0:02:59]}  Nd4 {[%clk 0:02:55]} 4. Nf3 {[%clk 0:02:59]}  Nxb5 {[%clk 0:02:49]} 5. Nxb5 {[%clk 0:02:59]}  Nf6 {[%clk 0:02:50]} 6. e5 {[%clk 0:02:57]}  Nd5 {[%clk 0:02:49]} 7. Ng5 {[%clk 0:02:56]}  e6 {[%clk 0:02:43]} 8. Ne4 {[%clk 0:02:56]}  b6 {[%clk 0:02:34]} 9. Nbd6+ {[%clk 0:02:54]}  Bxd6 {[%clk 0:02:34]} 10. Nxd6+ {[%clk 0:02:54]}  Kf8 {[%clk 0:02:34]} 11. O-O {[%clk 0:02:52]}  Ba6 {[%clk 0:02:34]} 12. c4 {[%clk 0:02:52]}  Ne7 {[%clk 0:02:31]} 13. d4 {[%clk 0:02:51]}  cxd4 {[%clk 0:02:27]} 14. Qxd4 {[%clk 0:02:52]}  Nc6 {[%clk 0:02:27]} 15. Qf4 {[%clk 0:02:51]}  f6 {[%clk 0:02:23]} 16. Re1 {[%clk 0:02:40]}  Kg8 {[%clk 0:02:14]} 17. Bd2 {[%clk 0:02:39]}  Qe7 {[%clk 0:02:05]} 18. Bc3 {[%clk 0:02:37]}  f5 {[%clk 0:02:05]} 19. Rad1 {[%clk 0:02:37]}  g5 {[%clk 0:02:02]} 20. Qd2 {[%clk 0:02:36]}  Rd8 {[%clk 0:01:55]} 21. b4 {[%clk 0:02:36]}  Nb8 {[%clk 0:01:39]} 22. b5 {[%clk 0:02:33]}  Bc8 {[%clk 0:01:39]} 23. Bb4 {[%clk 0:02:33]}  Qg7 {[%clk 0:01:39]} 24. a4 {[%clk 0:02:30]}  a5 {[%clk 0:01:31]} 25. Ba3 {[%clk 0:02:29]}  h6 {[%clk 0:01:28]} 26. Qd4 {[%clk 0:02:29]}  Kh7 {[%clk 0:01:15]} 27. Qxb6 {[%clk 0:02:28]}  Ba6 {[%clk 0:01:12]} 28. bxa6 {[%clk 0:02:27]}  Nc6 {[%clk 0:01:12]} 29. a7 {[%clk 0:02:26]}  Ra8 {[%clk 0:01:11]} 30. Nb5 {[%clk 0:02:26]}  Nxe5 {[%clk 0:01:05]} 31. Qc7 {[%clk 0:02:23]}  Ng4 {[%clk 0:00:58]} 1-0


[Site "https://www.chess.com"]

[Event "Titled Tuesday Blitz June 07 Late 2022"]
[White "Holt, Conrad"]
[Black "Vusatiuk, Vladimir"]
[WhiteFideId "2034387"]
[BlackFideId "14118610"]
[WhiteElo "2586"]
[BlackElo "2157"]
[Result "1-0"]
[Round "01"]
[TimeControl "180+1"]
[Date "2022.06.07"]
[WhiteClock "0:01:43"]
[BlackClock "0:00:52"]

1. d4 {[%clk 0:02:59]}  Nf6 {[%clk 0:02:57]} 2. c4 {[%clk 0:02:59]}  e6 {[%clk 0:02:52]} 3. Nc3 {[%clk 0:02:59]}  Bb4 {[%clk 0:02:51]} 4. Qc2 {[%clk 0:03:00]}  O-O {[%clk 0:02:50]} 5. e4 {[%clk 0:02:59]}  d5 {[%clk 0:02:49]} 6. e5 {[%clk 0:02:59]}  Ne4 {[%clk 0:02:49]} 7. Bd3 {[%clk 0:02:59]}  c5 {[%clk 0:02:48]} 8. Nf3 {[%clk 0:02:59]}  Nc6 {[%clk 0:02:41]} 9. O-O {[%clk 0:02:58]}  Bxc3 {[%clk 0:02:21]} 10. bxc3 {[%clk 0:02:57]}  f5 {[%clk 0:02:21]} 11. exf6 {[%clk 0:02:51]}  Nxf6 {[%clk 0:02:20]} 12. Ba3 {[%clk 0:02:51]}  b6 {[%clk 0:01:56]} 13. dxc5 {[%clk 0:02:44]}  Qe7 {[%clk 0:01:53]} 14. cxd5 {[%clk 0:02:44]}  Nxd5 {[%clk 0:01:49]} 15. Bxh7+ {[%clk 0:02:43]}  Kh8 {[%clk 0:01:49]} 16. Nd4 {[%clk 0:02:29]}  Ne5 {[%clk 0:01:40]} 17. Rae1 {[%clk 0:02:20]}  Nc4 {[%clk 0:01:35]} 18. Bc1 {[%clk 0:02:19]}  bxc5 {[%clk 0:01:33]} 19. Nb3 {[%clk 0:02:08]}  Ba6 {[%clk 0:01:25]} 20. Bd3 {[%clk 0:02:05]}  Nf4 {[%clk 0:01:23]} 21. Bxf4 {[%clk 0:02:01]}  Rxf4 {[%clk 0:01:24]} 22. g3 {[%clk 0:02:01]}  Rf6 {[%clk 0:01:18]} 23. Re4 {[%clk 0:01:57]}  Na3 {[%clk 0:01:14]} 24. Rh4+ {[%clk 0:01:55]}  Kg8 {[%clk 0:01:14]} 25. Qe2 {[%clk 0:01:51]}  c4 {[%clk 0:01:11]} 26. Bh7+ {[%clk 0:01:50]}  Kf8 {[%clk 0:01:11]} 27. Be4 {[%clk 0:01:44]}  Rd8 {[%clk 0:00:52]} 28. Rh8+ {[%clk 0:01:42]}  Kf7 {[%clk 0:00:52]} 29. Qh5+ {[%clk 0:01:43]}  g6 {[%clk 0:00:52]} 30. Qh7# {[%clk 0:01:43]} 1-0


[Site "https://www.chess.com"]

[Event "Titled Tuesday Blitz June 07 Late 2022"]
[White "Keller, Peter"]
[Black "Livaic, Leon"]
[WhiteFideId "1272105"]
[BlackFideId "14531534"]
[WhiteElo "2275"]
[BlackElo "2540"]
[Result "0-1"]
[Round "01"]
[TimeControl "180+1"]
[Date "2022.06.07"]
[WhiteClock "0:00:05"]
[BlackClock "0:00:39"]

1. e4 {[%clk 0:03:00]}  e6 {[%clk 0:02:56]} 2. d4 {[%clk 0:03:00]}  d5 {[%clk 0:02:56]} 3. Nc3 {[%clk 0:03:00]}  Bb4 {[%clk 0:02:56]} 4. e5 {[%clk 0:03:01]}  c5 {[%clk 0:02:56]} 5. a3 {[%clk 0:03:01]}  Bxc3+ {[%clk 0:02:57]} 6. bxc3 {[%clk 0:03:02]}  Ne7 {[%clk 0:02:58]} 7. Qg4 {[%clk 0:03:02]}  Qc7 {[%clk 0:02:58]} 8. Qxg7 {[%clk 0:03:02]}  Rg8 {[%clk 0:02:58]} 9. Qxh7 {[%clk 0:03:03]}  cxd4 {[%clk 0:02:58]} 10. Ne2 {[%clk 0:03:02]}  Nbc6 {[%clk 0:02:58]} 11. f4 {[%clk 0:03:02]}  dxc3 {[%clk 0:02:56]} 12. h4 {[%clk 0:03:00]}  d4 {[%clk 0:02:56]} 13. h5 {[%clk 0:02:56]}  Bd7 {[%clk 0:02:56]} 14. h6 {[%clk 0:02:53]}  O-O-O {[%clk 0:02:56]} 15. Qd3 {[%clk 0:02:53]}  Kb8 {[%clk 0:02:55]} 16. h7 {[%clk 0:02:34]}  Rh8 {[%clk 0:02:54]} 17. g4 {[%clk 0:02:34]}  Bc8 {[%clk 0:02:53]} 18. Bg2 {[%clk 0:02:35]}  b6 {[%clk 0:02:53]} 19. Rb1 {[%clk 0:02:34]}  Bb7 {[%clk 0:02:53]} 20. Rh6 {[%clk 0:02:32]}  Ng6 {[%clk 0:02:53]} 21. Kf2 {[%clk 0:02:27]}  Nf8 {[%clk 0:02:51]} 22. a4 {[%clk 0:02:27]}  Na5 {[%clk 0:02:43]} 23. Ba3 {[%clk 0:01:54]}  Bxg2 {[%clk 0:02:40]} 24. Bd6 {[%clk 0:01:33]}  Rxd6 {[%clk 0:02:39]} 25. exd6 {[%clk 0:01:34]}  Qb7 {[%clk 0:02:40]} 26. Nxd4 {[%clk 0:01:08]}  Be4 {[%clk 0:02:39]} 27. Qb5 {[%clk 0:01:02]}  Nxh7 {[%clk 0:02:33]} 28. Qe5 {[%clk 0:00:27]}  Rd8 {[%clk 0:02:25]} 29. Re1 {[%clk 0:00:26]}  Bg6 {[%clk 0:02:18]} 30. f5 {[%clk 0:00:26]}  Nc4 {[%clk 0:02:09]} 31. Qf4 {[%clk 0:00:21]}  e5 {[%clk 0:02:05]} 32. Rxe5 {[%clk 0:00:17]}  Nxe5 {[%clk 0:02:06]} 33. Qxe5 {[%clk 0:00:18]}  Nf8 {[%clk 0:01:41]} 34. fxg6 {[%clk 0:00:17]}  Nxg6 {[%clk 0:01:41]} 35. Qf6 {[%clk 0:00:12]}  Re8 {[%clk 0:01:35]} 36. Nb5 {[%clk 0:00:08]}  Qe4 {[%clk 0:01:29]} 37. Rxg6 {[%clk 0:00:07]}  Qxc2+ {[%clk 0:00:52]} 38. Kg3 {[%clk 0:00:07]}  Qd3+ {[%clk 0:00:37]} 39. Kh4 {[%clk 0:00:07]}  Qxg6 {[%clk 0:00:37]} 40. Qxc3 {[%clk 0:00:05]}  Qh6+ {[%clk 0:00:37]} 41. Kg3 {[%clk 0:00:05]}  Re3+ {[%clk 0:00:38]} 42. Qxe3 {[%clk 0:00:05]}  Qxe3+ {[%clk 0:00:39]} 0-1


[Site "https://www.chess.com"]

[Event "Titled Tuesday Blitz June 07 Late 2022"]
[White "Mamedov, Rauf"]
[Black "Bringas Gomez, Artai"]
[WhiteFideId "13401653"]
[BlackFideId "24534064"]
[WhiteElo "2666"]
[BlackElo "1988"]
[Result "1-0"]
[Round "01"]
[TimeControl "180+1"]
[Date "2022.06.07"]
[WhiteClock "0:02:42"]
[BlackClock "0:00:52"]

1. e4 {[%clk 0:02:59]}  c6 {[%clk 0:02:57]} 2. Ne2 {[%clk 0:02:59]}  d5 {[%clk 0:02:57]} 3. e5 {[%clk 0:02:59]}  c5 {[%clk 0:02:57]} 4. d4 {[%clk 0:02:59]}  Nc6 {[%clk 0:02:56]} 5. c3 {[%clk 0:02:59]}  cxd4 {[%clk 0:02:55]} 6. cxd4 {[%clk 0:02:59]}  Bf5 {[%clk 0:02:53]} 7. Nbc3 {[%clk 0:02:59]}  e6 {[%clk 0:02:53]} 8. Ng3 {[%clk 0:02:58]}  Bg6 {[%clk 0:02:53]} 9. Be2 {[%clk 0:02:58]}  Nge7 {[%clk 0:02:50]} 10. h4 {[%clk 0:02:58]}  h6 {[%clk 0:02:48]} 11. h5 {[%clk 0:02:58]}  Bh7 {[%clk 0:02:47]} 12. O-O {[%clk 0:02:55]}  Nf5 {[%clk 0:02:40]} 13. Nxf5 {[%clk 0:02:56]}  Bxf5 {[%clk 0:02:40]} 14. Bg4 {[%clk 0:02:56]}  Bxg4 {[%clk 0:02:33]} 15. Qxg4 {[%clk 0:02:57]}  Qb6 {[%clk 0:02:33]} 16. Be3 {[%clk 0:02:57]}  Qxb2 {[%clk 0:02:32]} 17. Rfc1 {[%clk 0:02:55]}  Qa3 {[%clk 0:02:23]} 18. Rab1 {[%clk 0:02:54]}  Qa6 {[%clk 0:02:14]} 19. Nb5 {[%clk 0:02:47]}  Rc8 {[%clk 0:02:14]} 20. Nd6+ {[%clk 0:02:47]}  Bxd6 {[%clk 0:02:13]} 21. exd6 {[%clk 0:02:48]}  Rg8 {[%clk 0:01:53]} 22. Bxh6 {[%clk 0:02:46]}  Kd7 {[%clk 0:01:47]} 23. Bxg7 {[%clk 0:02:47]}  b6 {[%clk 0:01:38]} 24. h6 {[%clk 0:02:46]}  Qd3 {[%clk 0:01:37]} 25. Qh5 {[%clk 0:02:42]}  Qg6 {[%clk 0:01:31]} 26. Qxg6 {[%clk 0:02:43]}  fxg6 {[%clk 0:01:32]} 27. Rxc6 {[%clk 0:02:43]}  Rxc6 {[%clk 0:01:01]} 28. h7 {[%clk 0:02:42]}  Rcc8 {[%clk 0:01:01]} 29. hxg8=Q {[%clk 0:02:42]}  Rxg8 {[%clk 0:01:02]} 30. Be5 {[%clk 0:02:42]}  Rc8 {[%clk 0:01:00]} 31. Rb3 {[%clk 0:02:42]}  Rc2 {[%clk 0:00:59]} 32. Rf3 {[%clk 0:02:42]}  Ke8 {[%clk 0:00:55]} 33. Rf6 {[%clk 0:02:42]}  Rxa2 {[%clk 0:00:52]} 34. Rxe6+ {[%clk 0:02:42]} 1-0


[Site "https://www.chess.com"]

[Event "Titled Tuesday Blitz June 07 Late 2022"]
[White "Martinez Alcantara, Jose Eduardo"]
[Black "Sliwicka, Alicja"]
[WhiteFideId "3805662"]
[BlackFideId "1150677"]
[WhiteElo "2703"]
[BlackElo "2120"]
[Result "1-0"]
[Round "01"]
[TimeControl "180+1"]
[Date "2022.06.07"]
[WhiteClock "0:00:19"]
[BlackClock "0:00:01"]

1. e4 {[%clk 0:03:00]}  c5 {[%clk 0:02:59]} 2. Nf3 {[%clk 0:03:00]}  d6 {[%clk 0:02:59]} 3. Bb5+ {[%clk 0:03:00]}  Bd7 {[%clk 0:02:59]} 4. c4 {[%clk 0:02:59]}  Bxb5 {[%clk 0:02:57]} 5. cxb5 {[%clk 0:03:00]}  a6 {[%clk 0:02:57]} 6. bxa6 {[%clk 0:02:54]}  Nxa6 {[%clk 0:02:55]} 7. O-O {[%clk 0:02:55]}  g6 {[%clk 0:02:54]} 8. d4 {[%clk 0:02:54]}  Bg7 {[%clk 0:02:54]} 9. Nc3 {[%clk 0:02:28]}  cxd4 {[%clk 0:02:33]} 10. Nxd4 {[%clk 0:02:27]}  Nf6 {[%clk 0:02:33]} 11. Be3 {[%clk 0:02:24]}  O-O {[%clk 0:02:32]} 12. f3 {[%clk 0:02:25]}  Qa5 {[%clk 0:02:23]} 13. a3 {[%clk 0:02:20]}  Rfc8 {[%clk 0:02:18]} 14. Rc1 {[%clk 0:01:54]}  Qd8 {[%clk 0:02:02]} 15. b4 {[%clk 0:01:46]}  Nd7 {[%clk 0:01:40]} 16. Qb3 {[%clk 0:01:44]}  Ne5 {[%clk 0:01:37]} 17. Ncb5 {[%clk 0:01:43]}  Rxc1 {[%clk 0:01:31]} 18. Rxc1 {[%clk 0:01:44]}  Rc8 {[%clk 0:01:31]} 19. Rc2 {[%clk 0:01:45]}  Nc6 {[%clk 0:01:06]} 20. Ne2 {[%clk 0:01:38]}  Qd7 {[%clk 0:00:45]} 21. Kf1 {[%clk 0:01:16]}  Ne5 {[%clk 0:00:45]} 22. Nbd4 {[%clk 0:01:14]}  Rxc2 {[%clk 0:00:41]} 23. Qxc2 {[%clk 0:01:15]}  Nc7 {[%clk 0:00:40]} 24. h3 {[%clk 0:01:09]}  Nc6 {[%clk 0:00:40]} 25. Qd3 {[%clk 0:00:59]}  Ne6 {[%clk 0:00:38]} 26. Nxe6 {[%clk 0:00:52]}  Qxe6 {[%clk 0:00:38]} 27. Qd5 {[%clk 0:00:51]}  Qc8 {[%clk 0:00:38]} 28. Qc4 {[%clk 0:00:50]}  Qd7 {[%clk 0:00:36]} 29. f4 {[%clk 0:00:49]}  Kf8 {[%clk 0:00:29]} 30. b5 {[%clk 0:00:49]}  Nd8 {[%clk 0:00:27]} 31. a4 {[%clk 0:00:48]}  f5 {[%clk 0:00:27]} 32. a5 {[%clk 0:00:43]}  fxe4 {[%clk 0:00:27]} 33. a6 {[%clk 0:00:43]}  bxa6 {[%clk 0:00:25]} 34. bxa6 {[%clk 0:00:44]}  Nc6 {[%clk 0:00:25]} 35. Qxe4 {[%clk 0:00:43]}  d5 {[%clk 0:00:23]} 36. Qa4 {[%clk 0:00:43]}  d4 {[%clk 0:00:16]} 37. Bxd4 {[%clk 0:00:35]}  Qc7 {[%clk 0:00:12]} 38. a7 {[%clk 0:00:30]}  Nxa7 {[%clk 0:00:10]} 39. Qxa7 {[%clk 0:00:27]}  Qd6 {[%clk 0:00:08]} 40. Bxg7+ {[%clk 0:00:25]}  Kxg7 {[%clk 0:00:08]} 41. Qd4+ {[%clk 0:00:26]}  Qf6 {[%clk 0:00:08]} 42. Qxf6+ {[%clk 0:00:25]}  exf6 {[%clk 0:00:09]} 43. Kf2 {[%clk 0:00:26]}  f5 {[%clk 0:00:08]} 44. Kf3 {[%clk 0:00:27]}  h6 {[%clk 0:00:08]} 45. h4 {[%clk 0:00:27]}  Kf6 {[%clk 0:00:08]} 46. Nc3 {[%clk 0:00:26]}  g5 {[%clk 0:00:08]} 47. g3 {[%clk 0:00:23]}  Kg6 {[%clk 0:00:08]} 48. Nd5 {[%clk 0:00:23]}  Kh5 {[%clk 0:00:07]} 49. hxg5 {[%clk 0:00:20]}  hxg5 {[%clk 0:00:07]} 50. Ne7 {[%clk 0:00:19]}  gxf4 {[%clk 0:00:01]} 51. gxf4 {[%clk 0:00:19]} 1-0


[Site "https://www.chess.com"]

[Event "Titled Tuesday Blitz June 07 Late 2022"]
[White "Moussard, Jules"]
[Black "Kubatko, Ivan"]
[WhiteFideId "642908"]
[BlackFideId "24111473"]
[WhiteElo "2589"]
[BlackElo "2285"]
[Result "1-0"]
[Round "01"]
[TimeControl "180+1"]
[Date "2022.06.07"]
[WhiteClock "0:01:41"]
[BlackClock "0:00:55"]

1. Nf3 {[%clk 0:03:00]}  d5 {[%clk 0:02:55]} 2. b3 {[%clk 0:03:01]}  c5 {[%clk 0:02:54]} 3. Bb2 {[%clk 0:03:02]}  Nc6 {[%clk 0:02:53]} 4. e3 {[%clk 0:03:01]}  a6 {[%clk 0:02:53]} 5. d4 {[%clk 0:03:01]}  Nf6 {[%clk 0:02:51]} 6. Bd3 {[%clk 0:02:59]}  Bg4 {[%clk 0:02:51]} 7. Nbd2 {[%clk 0:02:57]}  e6 {[%clk 0:02:49]} 8. O-O {[%clk 0:02:58]}  Bd6 {[%clk 0:02:48]} 9. h3 {[%clk 0:02:58]}  Bh5 {[%clk 0:02:48]} 10. a3 {[%clk 0:02:59]}  O-O {[%clk 0:02:48]} 11. dxc5 {[%clk 0:02:59]}  Bxc5 {[%clk 0:02:48]} 12. b4 {[%clk 0:03:00]}  Bd6 {[%clk 0:02:48]} 13. c4 {[%clk 0:02:59]}  Re8 {[%clk 0:02:45]} 14. cxd5 {[%clk 0:02:57]}  exd5 {[%clk 0:02:45]} 15. Qb3 {[%clk 0:02:56]}  Ne4 {[%clk 0:02:29]} 16. Rac1 {[%clk 0:02:48]}  Rc8 {[%clk 0:02:23]} 17. Bxe4 {[%clk 0:02:40]}  dxe4 {[%clk 0:02:21]} 18. Nd4 {[%clk 0:02:40]}  Qg5 {[%clk 0:02:00]} 19. Kh1 {[%clk 0:02:03]}  Qe5 {[%clk 0:01:28]} 20. N4f3 {[%clk 0:02:02]}  Qf5 {[%clk 0:01:25]} 21. Nd4 {[%clk 0:02:01]}  Qe5 {[%clk 0:01:24]} 22. f4 {[%clk 0:01:42]}  exf3 {[%clk 0:01:22]} 23. N4xf3 {[%clk 0:01:42]}  Qxe3 {[%clk 0:01:07]} 24. Qxe3 {[%clk 0:01:41]}  Rxe3 {[%clk 0:01:08]} 25. Nc4 {[%clk 0:01:41]}  Rd3 {[%clk 0:00:55]} 26. Ne1 {[%clk 0:01:41]}  Rd5 {[%clk 0:00:55]} 27. Nb6 {[%clk 0:01:41]} 1-0


[Site "https://www.chess.com"]

[Event "Titled Tuesday Blitz June 07 Late 2022"]
[White "Nozdrachev, Leonid"]
[Black "Sarana, Alexey"]
[WhiteFideId "24113433"]
[BlackFideId "24133795"]
[WhiteElo "2129"]
[BlackElo "2666"]
[Result "0-1"]
[Round "01"]
[TimeControl "180+1"]
[Date "2022.06.07"]
[WhiteClock "0:00:02"]
[BlackClock "0:01:22"]

1. e4 {[%clk 0:02:58]}  c5 {[%clk 0:03:00]} 2. c3 {[%clk 0:02:58]}  d5 {[%clk 0:02:59]} 3. exd5 {[%clk 0:02:57]}  Qxd5 {[%clk 0:03:00]} 4. d4 {[%clk 0:02:57]}  Nf6 {[%clk 0:03:00]} 5. Nf3 {[%clk 0:02:57]}  Nc6 {[%clk 0:03:00]} 6. Be2 {[%clk 0:02:56]}  cxd4 {[%clk 0:02:59]} 7. cxd4 {[%clk 0:02:56]}  e6 {[%clk 0:03:00]} 8. O-O {[%clk 0:02:54]}  Be7 {[%clk 0:02:59]} 9. Nc3 {[%clk 0:02:51]}  Qd6 {[%clk 0:02:58]} 10. Bg5 {[%clk 0:02:44]}  O-O {[%clk 0:02:56]} 11. Bxf6 {[%clk 0:02:43]}  Bxf6 {[%clk 0:02:56]} 12. Ne4 {[%clk 0:02:42]}  Qe7 {[%clk 0:02:57]} 13. Bb5 {[%clk 0:02:24]}  Bd7 {[%clk 0:02:19]} 14. Rc1 {[%clk 0:02:24]}  Rfd8 {[%clk 0:02:18]} 15. Re1 {[%clk 0:02:11]}  Nxd4 {[%clk 0:02:04]} 16. Nxf6+ {[%clk 0:02:02]}  Qxf6 {[%clk 0:02:05]} 17. Qxd4 {[%clk 0:01:59]}  Bxb5 {[%clk 0:02:04]} 18. Qxf6 {[%clk 0:01:53]}  gxf6 {[%clk 0:02:05]} 19. Red1 {[%clk 0:01:34]}  Rxd1+ {[%clk 0:02:03]} 20. Rxd1 {[%clk 0:01:35]}  Rc8 {[%clk 0:02:03]} 21. Nd4 {[%clk 0:01:29]}  Bd7 {[%clk 0:01:57]} 22. f4 {[%clk 0:01:12]}  Kf8 {[%clk 0:01:57]} 23. Nf5 {[%clk 0:00:47]}  Bc6 {[%clk 0:01:48]} 24. Ne3 {[%clk 0:00:45]}  Ke7 {[%clk 0:01:48]} 25. Kf2 {[%clk 0:00:45]}  Be4 {[%clk 0:01:46]} 26. Rd4 {[%clk 0:00:42]}  f5 {[%clk 0:01:46]} 27. Rd2 {[%clk 0:00:40]}  Rc1 {[%clk 0:01:45]} 28. a3 {[%clk 0:00:37]}  h5 {[%clk 0:01:41]} 29. h4 {[%clk 0:00:36]}  Rh1 {[%clk 0:01:39]} 30. Kg3 {[%clk 0:00:34]}  b6 {[%clk 0:01:35]} 31. Rd1 {[%clk 0:00:31]}  Rxd1 {[%clk 0:01:34]} 32. Nxd1 {[%clk 0:00:32]}  Kd6 {[%clk 0:01:34]} 33. Kf2 {[%clk 0:00:29]}  Kc5 {[%clk 0:01:34]} 34. Nc3 {[%clk 0:00:24]}  Bc6 {[%clk 0:01:28]} 35. g3 {[%clk 0:00:15]}  Kc4 {[%clk 0:01:27]} 36. Ke3 {[%clk 0:00:13]}  Kb3 {[%clk 0:01:26]} 37. Kd2 {[%clk 0:00:05]}  Kxb2 {[%clk 0:01:26]} 38. Ne2 {[%clk 0:00:04]}  Kxa3 {[%clk 0:01:26]} 39. Nd4 {[%clk 0:00:03]}  Bd7 {[%clk 0:01:23]} 40. Kc3 {[%clk 0:00:04]}  b5 {[%clk 0:01:23]} 41. Nf3 {[%clk 0:00:03]}  f6 {[%clk 0:01:23]} 42. Kd2 {[%clk 0:00:02]}  a5 {[%clk 0:01:22]} 43. Ne1 {[%clk 0:00:02]}  b4 {[%clk 0:01:23]} 44. Nd3 {[%clk 0:00:03]}  b3 {[%clk 0:01:23]} 45. Kc3 {[%clk 0:00:02]}  a4 {[%clk 0:01:23]} 46. Nb2 {[%clk 0:00:02]}  Ka2 {[%clk 0:01:22]} 47. Nc4 {[%clk 0:00:02]}  a3 {[%clk 0:01:22]} 0-1


[Site "https://www.chess.com"]

[Event "Titled Tuesday Blitz June 07 Late 2022"]
[White "Petrovic, Aleksa"]
[Black "Abdrlauf, Elham"]
[WhiteFideId "967629"]
[BlackFideId "1533533"]
[WhiteElo "2117"]
[BlackElo "2403"]
[Result "0-1"]
[Round "01"]
[TimeControl "180+1"]
[Date "2022.06.07"]
[WhiteClock "0:00:37"]
[BlackClock "0:00:40"]

1. d4 {[%clk 0:03:00]}  Nf6 {[%clk 0:02:56]} 2. c4 {[%clk 0:02:59]}  e6 {[%clk 0:02:56]} 3. Nc3 {[%clk 0:02:59]}  d5 {[%clk 0:02:56]} 4. Nf3 {[%clk 0:02:58]}  dxc4 {[%clk 0:02:51]} 5. e4 {[%clk 0:02:55]}  b5 {[%clk 0:02:48]} 6. e5 {[%clk 0:02:53]}  Nd5 {[%clk 0:02:41]} 7. Nxb5 {[%clk 0:02:53]}  Nb6 {[%clk 0:02:39]} 8. Be2 {[%clk 0:02:53]}  Be7 {[%clk 0:02:34]} 9. O-O {[%clk 0:02:45]}  O-O {[%clk 0:02:29]} 10. Qc2 {[%clk 0:02:42]}  Bb7 {[%clk 0:02:24]} 11. Rd1 {[%clk 0:02:30]}  Nc6 {[%clk 0:02:22]} 12. Bxc4 {[%clk 0:02:21]}  Nb4 {[%clk 0:02:16]} 13. Qb3 {[%clk 0:02:13]}  Nxc4 {[%clk 0:02:09]} 14. Qxc4 {[%clk 0:02:13]}  Ba6 {[%clk 0:01:51]} 15. Bd2 {[%clk 0:02:05]}  c6 {[%clk 0:01:20]} 16. Bxb4 {[%clk 0:02:03]}  cxb5 {[%clk 0:01:19]} 17. Qb3 {[%clk 0:02:02]}  Bb7 {[%clk 0:01:17]} 18. Bxe7 {[%clk 0:01:54]}  Qxe7 {[%clk 0:01:17]} 19. Qxb5 {[%clk 0:01:55]}  Bxf3 {[%clk 0:01:11]} 20. gxf3 {[%clk 0:01:56]}  f6 {[%clk 0:01:06]} 21. exf6 {[%clk 0:01:35]}  Rxf6 {[%clk 0:01:06]} 22. Qc6 {[%clk 0:01:32]}  Raf8 {[%clk 0:01:05]} 23. Re1 {[%clk 0:01:27]}  Rh6 {[%clk 0:00:50]} 24. Re3 {[%clk 0:01:08]}  Qg5+ {[%clk 0:00:45]} 25. Kh1 {[%clk 0:01:00]}  Qf4 {[%clk 0:00:40]} 26. Kg2 {[%clk 0:00:37]}  Qxh2+ {[%clk 0:00:39]} 27. Kf1 {[%clk 0:00:37]}  Qh1+ {[%clk 0:00:40]} 28. Ke2 {[%clk 0:00:37]}  Qxa1 {[%clk 0:00:40]} 0-1


[Site "https://www.chess.com"]

[Event "Titled Tuesday Blitz June 07 Late 2022"]
[White "Sjugirov, Sanan"]
[Black "Karas, Marek"]
[WhiteFideId "4189302"]
[BlackFideId "14928558"]
[WhiteElo "2602"]
[BlackElo "2271"]
[Result "1-0"]
[Round "01"]
[TimeControl "180+1"]
[Date "2022.06.07"]
[WhiteClock "0:00:11"]
[BlackClock "0:00:08"]

1. Nf3 {[%clk 0:03:00]}  Nf6 {[%clk 0:02:54]} 2. g3 {[%clk 0:03:01]}  d5 {[%clk 0:02:53]} 3. Bg2 {[%clk 0:03:01]}  e6 {[%clk 0:02:52]} 4. O-O {[%clk 0:03:01]}  Be7 {[%clk 0:02:52]} 5. c4 {[%clk 0:03:02]}  O-O {[%clk 0:02:52]} 6. b3 {[%clk 0:03:02]}  b6 {[%clk 0:02:51]} 7. cxd5 {[%clk 0:03:02]}  Nxd5 {[%clk 0:02:44]} 8. Bb2 {[%clk 0:03:01]}  Bb7 {[%clk 0:02:43]} 9. d4 {[%clk 0:03:01]}  Nd7 {[%clk 0:02:41]} 10. Re1 {[%clk 0:02:59]}  c5 {[%clk 0:02:40]} 11. e4 {[%clk 0:02:58]}  N5f6 {[%clk 0:02:37]} 12. Nc3 {[%clk 0:02:57]}  cxd4 {[%clk 0:02:34]} 13. Nxd4 {[%clk 0:02:58]}  Nc5 {[%clk 0:02:25]} 14. e5 {[%clk 0:02:53]}  Nd5 {[%clk 0:02:24]} 15. Nxd5 {[%clk 0:02:29]}  Bxd5 {[%clk 0:02:24]} 16. Bxd5 {[%clk 0:02:14]}  Qxd5 {[%clk 0:02:23]} 17. Nf5 {[%clk 0:02:13]}  Rfe8 {[%clk 0:02:14]} 18. Qxd5 {[%clk 0:02:08]}  exd5 {[%clk 0:02:15]} 19. Rad1 {[%clk 0:02:06]}  Rad8 {[%clk 0:02:12]} 20. Ne3 {[%clk 0:02:02]}  d4 {[%clk 0:01:55]} 21. Bxd4 {[%clk 0:01:59]}  Ne6 {[%clk 0:01:55]} 22. Bb2 {[%clk 0:01:58]}  Bc5 {[%clk 0:01:52]} 23. Nd5 {[%clk 0:01:49]}  Kf8 {[%clk 0:01:21]} 24. Kg2 {[%clk 0:01:44]}  Rd7 {[%clk 0:01:18]} 25. b4 {[%clk 0:01:24]}  Red8 {[%clk 0:01:04]} 26. bxc5 {[%clk 0:01:23]}  Rxd5 {[%clk 0:01:04]} 27. Rxd5 {[%clk 0:01:22]}  Rxd5 {[%clk 0:01:05]} 28. cxb6 {[%clk 0:01:18]}  axb6 {[%clk 0:01:06]} 29. Re3 {[%clk 0:00:55]}  Ra5 {[%clk 0:00:54]} 30. Ra3 {[%clk 0:00:51]}  Rxa3 {[%clk 0:00:44]} 31. Bxa3+ {[%clk 0:00:52]}  Ke8 {[%clk 0:00:45]} 32. Kf3 {[%clk 0:00:51]}  Kd7 {[%clk 0:00:41]} 33. Ke4 {[%clk 0:00:50]}  Kc6 {[%clk 0:00:39]} 34. f4 {[%clk 0:00:49]}  g6 {[%clk 0:00:39]} 35. g4 {[%clk 0:00:48]}  Nc7 {[%clk 0:00:36]} 36. f5 {[%clk 0:00:46]}  Nb5 {[%clk 0:00:32]} 37. Bb2 {[%clk 0:00:39]}  Nc7 {[%clk 0:00:32]} 38. h4 {[%clk 0:00:37]}  Kd7 {[%clk 0:00:20]} 39. Bd4 {[%clk 0:00:33]}  Nb5 {[%clk 0:00:14]} 40. Bb2 {[%clk 0:00:31]}  Nc7 {[%clk 0:00:14]} 41. a4 {[%clk 0:00:26]}  h5 {[%clk 0:00:14]} 42. gxh5 {[%clk 0:00:19]}  gxh5 {[%clk 0:00:13]} 43. Bd4 {[%clk 0:00:17]}  b5 {[%clk 0:00:13]} 44. a5 {[%clk 0:00:17]}  Kc6 {[%clk 0:00:12]} 45. e6 {[%clk 0:00:15]}  fxe6 {[%clk 0:00:10]} 46. f6 {[%clk 0:00:15]}  Kd6 {[%clk 0:00:08]} 47. Be5+ {[%clk 0:00:13]}  Kd7 {[%clk 0:00:07]} 48. Bxc7 {[%clk 0:00:12]}  b4 {[%clk 0:00:07]} 49. Be5 {[%clk 0:00:12]}  b3 {[%clk 0:00:08]} 50. a6 {[%clk 0:00:12]}  b2 {[%clk 0:00:08]} 51. Bxb2 {[%clk 0:00:11]} 1-0


[Site "https://www.chess.com"]